[Event "Bamberg-Open 2019"]
[Site "Bamberg"]
[Date "2019.05.29"]
[Round "1.2"]
[White "Plat, Vojtech"]
[Black "Guendel, Bernd"]
[Result "1-0"]
[ECO "B30"]
[WhiteElo "2540"]
[BlackElo "2055"]
[Annotator "RC"]
[PlyCount "103"]
[EventDate "2019.05.12"]
[EventType "swiss"]
[EventCountry "GER"]
[SourceTitle "playchess.com"]
[Source "ChessBase"]
[SourceQuality "1"]
[TimeControl "40/5400+30:900+30"]

1. e4 {[%emt 0:18:35]} c5 {[%emt 0:00:00]} 2. Nf3 {[%emt 0:00:25]} Nc6 {[%emt 0:01:39]} 3. c3 {[%emt 0:00:22]} d5 {[%emt 0:04:47]} 4. exd5 {[%emt 0:03:35]} Qxd5 {[%emt 0:00:09]} 5. d4 {[%emt 0:00:05]} Bg4 {[%emt 0:04:21]} 6. Be2 {[%emt 0:00:06]} e5 {[%emt 0:06:27]} 7. dxe5 {[%emt 0:05:48]} Bxf3 {[%emt 0:00:23]} 8. Bxf3 {[%emt 0:00:06]} Qxd1+ {[%emt 0:00:08]} 9. Bxd1 {[%emt 0:00:25]} Nxe5 {[%emt 0:01:34]} 10. Ba4+ {[%emt 0:00:04]} Nd7 {[%emt 0:04:15]} 11. O-O {[%emt 0:00:13]} O-O-O {[%emt 0:04:33]} 12. Bb3 {[%emt 0:00:06]} f6 {[%emt 0:05:00]} 13. Be6 {[%emt 0:00:08]} Bd6 {[%emt 0:02:15]} 14. Rd1 {[%emt 0:00:44]} Kc7 {[%emt 0:00:09]} 15. Na3 {[%emt 0:00:16]} a6 {[%emt 0:04:26]} 16. Be3 {[%emt 0:00:55]} Ne7 {[%emt 0:15:28]} 17. Nc4 {[%emt 0:01:49]} Ne5 {[%emt 0:00:34]} 18. Nxe5 {[%emt 0:00:16]} fxe5 {[%emt 0:00:31]} 19. Rd2 {[%emt 0:00:10]} Nc6 {[%emt 0:06:59]} 20. Rad1 {[%emt 0:00:10]} Rhe8 {[%emt 0:01:56]} 21. Bf7 {[%emt 0:02:19]} Rf8 {[%emt 0:01:36]} 22. Be6 {[%emt 0:01:34]} Rfe8 {[%emt 0:03:27]} 23. Bg4 {[%emt 0:00:05]} h6 {[%emt 0:03:56]} 24. a3 {[%emt 0:01:35]} e4 {[%emt 0:01:54]} 25. Bf5 {[%emt 0:02:30]} Ne5 {[%emt 0:02:52]} 26. Rd5 {[%emt 0:03:15]} Nc4 {[%emt 0:04:47]} 27. Bc1 {[%emt 0:04:03]} Nb6 {[%emt 0:01:34]} 28. Rxd6 {[%emt 0:02:49]} Rxd6 {[%emt 0:00:49]} 29. Bf4 {[%emt 0:00:03]} Red8 {[%emt 0:00:08]} 30. Bxe4 {[%emt 0:02:41]} Nc4 {[%emt 0:05:04]} 31. h4 {[%emt 0:04:27]} Kb6 {[%emt 0:01:19]} 32. Bxd6 {[%emt 0:00:07]} Rxd6 {[%emt 0:00:13]} 33. Rxd6+ {[%emt 0:00:10]} Nxd6 {[%emt 0:00:01]} 34. Bd5 {[%emt 0:00:14]} c4 {[%emt 0:00:38]} 35. Kf1 {[%emt 0:00:17]} Kc5 {[%emt 0:00:06]} 36. Bf3 {[%emt 0:00:06]} b5 {[%emt 0:01:03]} 37. Ke2 {[%emt 0:00:07]} a5 {[%emt 0:00:05]} 38. Ke3 {[%emt 0:00:51]} b4 {[%emt 0:01:08]} 39. axb4+ {[%emt 0:00:05]} axb4 {[%emt 0:00:04]} 40. Be4 {[%emt 0:04:07]} b3 {[%emt 0:06:08]} 41. Bg6 {[%emt 0:15:51]} Kd5 {[%emt 0:20:55]} 42. f4 {[%emt 0:00:41]} Nb5 {[%emt 0:01:52]} 43. Bf7+ {[%emt 0:06:16]} Kc5 {[%emt 0:00:23]} 44. g4 {[%emt 0:00:18]} Nd6 {[%emt 0:00:22]} 45. Be6 {[%emt 0:00:04]} Nb5 {[%emt 0:00:00]} 46. g5 {[%emt 0:00:00]} Nc7 {[%emt 0:00:00]} 47. Bf7 {[%emt 0:00:00]} Nb5 {[%emt 0:00:00]} 48. Bg8 {[%emt 0:00:00]} hxg5 {[%emt 0:00:00]} 49. fxg5 {[%emt 0:00:00]} Nd6 {[%emt 0:00:00]} 50. h5 {[%emt 0:00:00]} Nf5+ {[%emt 0:00:00]} 51. Kf4 {[%emt 0:00:00]} Ne7 {[%emt 0:00:00]} 52. Bf7 {[%emt 0:00:00] Kd5 Ke4+} 1-0

[Event "Bamberg-Open 2019"]
[Site "Bamberg"]
[Date "2019.05.29"]
[Round "1.9"]
[White "Waffenschmidt, Joachim"]
[Black "Scholz, Christian"]
[Result "0-1"]
[ECO "E94"]
[WhiteElo "1983"]
[BlackElo "2372"]
[Annotator "RC"]
[PlyCount "106"]
[EventDate "2019.05.12"]
[EventType "swiss"]
[EventCountry "GER"]
[SourceTitle "playchess.com"]
[Source "ChessBase"]
[SourceQuality "1"]
[TimeControl "40/5400+30:900+30"]

1. d4 {[%emt 0:00:00]} Nf6 {[%emt 0:00:00]} 2. c4 {[%emt 0:00:00]} g6 {[%emt 0:00:00]} 3. Nc3 {[%emt 0:00:00]} Bg7 {[%emt 0:00:00]} 4. e4 {[%emt 0:00:00]} d6 {[%emt 0:00:00]} 5. Nf3 {[%emt 0:00:00]} O-O {[%emt 0:00:00]} 6. Be2 {[%emt 0:00:16]} e5 {[%emt 0:00:07]} 7. O-O {[%emt 0:00:06]} Na6 8. Be3 {[%emt 0:04:17]} h6 {[%emt 0:00:43]} 9. h3 {[%emt 0:01:47]} exd4 {[%emt 0:00:40]} 10. Nxd4 {[%emt 0:00:45]} Re8 {[%emt 0:00:29]} 11. Qc2 {[%emt 0:03:24]} Nc5 {[%emt 0:04:17]} 12. Bf3 {[%emt 0:03:51]} Nh7 {[%emt 0:11:29]} 13. Nb3 {[%emt 0:04:50]} Ng5 {[%emt 0:07:45]} 14. Bxg5 {[%emt 0:13:56]} Qxg5 {[%emt 0:00:19]} 15. Nd5 {[%emt 0:00:46]} Ne6 {[%emt 0:04:58]} 16. Rad1 {[%emt 0:14:21]} c6 {[%emt 0:08:44]} 17. Ne3 {[%emt 0:00:21]} h5 {[%emt 0:20:55]} 18. Kh1 {[%emt 0:03:36]} Be5 {[%emt 0:01:45]} 19. Rfe1 {[%emt 0:05:47]} Qf4 {[%emt 0:04:19]} 20. Nf1 {[%emt 0:00:17]} Ng5 {[%emt 0:00:55]} 21. Re3 {[%emt 0:19:37]} Bxh3 {[%emt 0:01:13]} 22. g3 {[%emt 0:01:45]} Qf6 {[%emt 0:00:55]} 23. Bg2 {[%emt 0:00:12]} Bxg2+ {[%emt 0:07:44]} 24. Kxg2 {[%emt 0:00:53]} Ne6 {[%emt 0:02:09]} 25. Rf3 {[%emt 0:03:25]} Qg7 {[%emt 0:00:51]} 26. c5 {[%emt 0:00:35]} Rad8 {[%emt 0:03:58]} 27. cxd6 {[%emt 0:02:41]} Bxd6 {[%emt 0:01:38]} 28. Rfd3 {[%emt 0:02:04]} Qe5 {[%emt 0:02:54]} 29. R3d2 {[%emt 0:03:04]} Bc7 {[%emt 0:02:01]} 30. Rxd8 {[%emt 0:00:54]} Rxd8 {[%emt 0:00:16]} 31. Rxd8+ {[%emt 0:00:01]} Bxd8 {[%emt 0:00:13]} 32. Nbd2 {[%emt 0:00:38]} Qd4 {[%emt 0:01:29]} 33. Nf3 {[%emt 0:01:05]} Qd6 {[%emt 0:01:20]} 34. Ne3 {[%emt 0:02:48]} b5 {[%emt 0:00:54]} 35. e5 {[%emt 0:01:20]} Qd7 {[%emt 0:00:26]} 36. Qe4 {[%emt 0:01:18]} Bb6 {[%emt 0:01:19]} 37. b4 {[%emt 0:03:29]} a5 {[%emt 0:02:18]} 38. a3 {[%emt 0:01:03]} Kg7 {[%emt 0:01:46]} 39. Nc2 {[%emt 0:01:18]} c5 {[%emt 0:02:06]} 40. bxa5 {[%emt 0:01:23]} Bxa5 {[%emt 0:00:37]} 41. Ne3 {[%emt 0:15:29]} c4 {[%emt 0:20:27]} 42. a4 {[%emt 0:00:00]} bxa4 {[%emt 0:00:00]} 43. Nxc4 {[%emt 0:00:00]} Bb4 {[%emt 0:00:00]} 44. Nb6 {[%emt 0:00:00]} Qb5 {[%emt 0:00:00]} 45. Nd5 {[%emt 0:00:00]} Bc5 {[%emt 0:00:00]} 46. Nf4 {[%emt 0:00:00]} Nxf4+ {[%emt 0:00:00]} 47. Qxf4 {[%emt 0:00:00]} Qc6 {[%emt 0:00:00]} 48. Kh2 {[%emt 0:00:00]} Be7 {[%emt 0:00:00]} 49. Nd4 {[%emt 0:00:00]} Qd5 {[%emt 0:00:00]} 50. Nc2 {[%emt 0:00:55]} a3 {[%emt 0:00:00]} 51. g4 {[%emt 0:02:13]} Qd3 {[%emt 0:01:25]} 52. gxh5 {[%emt 0:01:35]} Qxc2 {[%emt 0:00:52]} 53. e6 {[%emt 0:00:29]} Qf5 {[%emt 0:01:00]} 0-1

[Event "Bamberg-Open 2019"]
[Site "Bamberg"]
[Date "2019.05.29"]
[Round "1.13"]
[White "Miettinen, Teemu"]
[Black "Spitzl, Vinzent"]
[Result "0-1"]
[ECO "B92"]
[WhiteElo "2017"]
[BlackElo "2263"]
[Annotator "ChessBase"]
[PlyCount "74"]
[EventDate "2019.05.12"]
[EventType "swiss"]
[EventCountry "GER"]
[SourceTitle "playchess.com"]
[Source "ChessBase"]
[SourceQuality "1"]
[TimeControl "40/5400+30:900+30"]

1. e4 {[%emt 0:00:00]} c5 {[%emt 0:00:03]} 2. Nf3 {[%emt 0:00:05]} d6 {[%emt 0:00:08]} 3. d4 {[%emt 0:00:27]} cxd4 {[%emt 0:00:06]} 4. Nxd4 {[%emt 0:00:22]} Nf6 {[%emt 0:00:06]} 5. Nc3 {[%emt 0:00:16]} a6 {[%emt 0:00:00]} 6. Be2 {[%emt 0:03:46]} e5 {[%emt 0:00:26]} 7. Nf3 {[%emt 0:00:07]} h6 {[%emt 0:01:12]} 8. O-O {[%emt 0:01:12]} Be6 {[%emt 0:01:34]} 9. b3 {[%emt 0:03:57]} Nc6 {[%emt 0:02:56]} 10. Bb2 {[%emt 0:04:09]} Be7 {[%emt 0:01:01]} 11. Re1 {[%emt 0:02:29]} O-O {[%emt 0:04:53]} 12. h3 {[%emt 0:01:55]} Rc8 {[%emt 0:04:36]} 13. Bf1 {[%emt 0:02:58]} Qa5 {[%emt 0:05:43]} 14. a3 {[%emt 0:05:17]} Nb8 {[%emt 0:00:32]} 15. b4 {[%emt 0:02:22]} Qc7 {[%emt 0:00:15]} 16. Rc1 {[%emt 0:01:36]} Qc6 {[%emt 0:06:53]} 17. b5 {[%emt 0:08:24]} axb5 {[%emt 0:05:03]} 18. Bxb5 {[%emt 0:09:31]} Qc5 {[%emt 0:03:15]} 19. Qe2 {[%emt 0:08:56]} Nbd7 {[%emt 0:04:14]} 20. Nd2 {[%emt 0:07:51]} Bd8 {[%emt 0:08:02]} 21. Nb3 {[%emt 0:00:50]} Qc7 {[%emt 0:00:30]} 22. Red1 {[%emt 0:04:55]} Nb6 {[%emt 0:00:41]} 23. Qf3 {[%emt 0:03:30]} Nc4 {[%emt 0:01:38]} 24. Bxc4 {[%emt 0:00:49]} Bxc4 {[%emt 0:01:13]} 25. Nd5 {[%emt 0:02:18]} Nxd5 {[%emt 0:02:06]} 26. exd5 {[%emt 0:00:07]} f5 {[%emt 0:00:52]} 27. Qh5 {[%emt 0:07:10]} Qb6 {[%emt 0:04:46]} 28. Qg6 {[%emt 0:03:04]} Bf6 {[%emt 0:02:51]} 29. Rb1 {[%emt 0:01:15]} Bh4 {[%emt 0:10:34]} 30. Rd2 {[%emt 0:02:33]} Rf6 {[%emt 0:01:16]} 31. Qh5 {[%emt 0:00:08]} Bg5 {[%emt 0:00:07]} 32. Rdd1 {[%emt 0:01:21]} Qa6 {[%emt 0:01:14]} 33. Nc1 {[%emt 0:02:54]} Bxc1 {[%emt 0:03:41]} 34. Rdxc1 {[%emt 0:00:02]} Bxd5 {[%emt 0:00:30]} 35. f4 {[%emt 0:01:07]} Qb6+ {[%emt 0:01:08]} 36. Kh1 {[%emt 0:02:40]} Qf2 {[%emt 0:00:12]} 37. Rg1 {[%emt 0:00:01]} Rxc2 {[%emt 0:00:17]} 0-1

[Event "Bamberg-Open 2019"]
[Site "Bamberg"]
[Date "2019.05.29"]
[Round "1.18"]
[White "Mittag, Ralf"]
[Black "Syed, Tareq"]
[Result "0-1"]
[ECO "A16"]
[WhiteElo "2203"]
[BlackElo "2001"]
[Annotator "ChessBase"]
[PlyCount "162"]
[EventDate "2019.05.12"]
[EventType "swiss"]
[EventCountry "GER"]
[SourceTitle "playchess.com"]
[Source "ChessBase"]
[SourceQuality "1"]
[TimeControl "40/5400+30:900+30"]

1. c4 {[%emt 0:00:00]} Nf6 {[%emt 0:00:00]} 2. Nc3 {[%emt 0:00:03]} d6 {[%emt 0:00:00]} 3. g3 {[%emt 0:00:32]} e5 {[%emt 0:00:00]} 4. Bg2 {[%emt 0:00:07]} Be7 {[%emt 0:00:42]} 5. Nf3 {[%emt 0:02:18]} c6 {[%emt 0:01:59]} 6. O-O {[%emt 0:01:09]} O-O {[%emt 0:00:06]} 7. Rb1 {[%emt 0:00:50]} Be6 {[%emt 0:00:27]} 8. d3 {[%emt 0:00:11]} h6 {[%emt 0:00:14]} 9. h3 {[%emt 0:01:24]} Nbd7 {[%emt 0:02:25]} 10. b3 {[%emt 0:10:08]} d5 {[%emt 0:09:04]} 11. Qc2 {[%emt 0:03:35]} d4 {[%emt 0:04:55]} 12. Na4 {[%emt 0:08:43]} Rc8 {[%emt 0:02:31]} 13. e3 {[%emt 0:09:07]} b5 {[%emt 0:02:38]} 14. Nb2 {[%emt 0:01:58]} Qb6 {[%emt 0:04:13]} 15. exd4 {[%emt 0:04:20]} exd4 {[%emt 0:02:52]} 16. a4 {[%emt 0:04:12]} a6 {[%emt 0:02:49]} 17. Bd2 {[%emt 0:02:36]} c5 {[%emt 0:08:33]} 18. axb5 {[%emt 0:04:23]} axb5 {[%emt 0:00:09]} 19. Ra1 {[%emt 0:00:57]} b4 {[%emt 0:05:13]} 20. Ra2 Bd6 {[%emt 0:02:18]} 21. Rfa1 {[%emt 0:04:44]} Bb8 {[%emt 0:01:09]} 22. Ra6 {[%emt 0:02:15]} Qd8 {[%emt 0:00:47]} 23. Nh4 {[%emt 0:03:51]} g5 {[%emt 0:10:54]} 24. Nf3 {[%emt 0:00:35]} Ne8 {[%emt 0:07:21]} 25. h4 {[%emt 0:03:16]} Nc7 {[%emt 0:04:30]} 26. Rc6 {[%emt 0:03:52]} f6 {[%emt 0:02:28]} 27. Re1 {[%emt 0:02:04]} Bf5 {[%emt 0:02:20]} 28. hxg5 {[%emt 0:00:49]} hxg5 {[%emt 0:00:19]} 29. Qd1 {[%emt 0:06:58]} Re8 {[%emt 0:03:55]} 30. Nh2 {[%emt 0:03:11]} Rxe1+ {[%emt 0:10:52]} 31. Bxe1 {[%emt 0:00:28]} Qe7 {[%emt 0:02:36]} 32. Bd2 {[%emt 0:07:13]} Re8 {[%emt 0:01:44]} 33. Qf3 {[%emt 0:04:37]} Bh7 {[%emt 0:03:26]} 34. Ng4 {[%emt 0:01:39]} Kg7 {[%emt 0:00:34]} 35. Qd1 {[%emt 0:02:58]} Qe2 {[%emt 0:00:26]} 36. Bf3 {[%emt 0:00:36]} Qxd1+ {[%emt 0:00:44]} 37. Bxd1 {[%emt 0:00:01]} Re6 {[%emt 0:00:35]} 38. Bf3 {[%emt 0:01:05]} Rxc6 {[%emt 0:00:57]} 39. Bxc6 {[%emt 0:00:02]} Nb6 {[%emt 0:00:42]} 40. Kf1 {[%emt 0:00:55]} Bf5 {[%emt 0:01:17]} 41. Nh2 {[%emt 0:15:48]} Ne6 {[%emt 0:16:12]} 42. Ke2 {[%emt 0:01:14]} Nd8 {[%emt 0:00:00]} 43. Bg2 {[%emt 0:00:00]} Nf7 {[%emt 0:00:00]} 44. f4 {[%emt 0:00:00]} gxf4 {[%emt 0:00:00]} 45. gxf4 {[%emt 0:00:00]} Nd8 {[%emt 0:00:00]} 46. Kf3 {[%emt 0:00:00]} Bd7 {[%emt 0:00:00]} 47. Kg3 {[%emt 0:00:00]} Bc6 {[%emt 0:00:00]} 48. Bh3 {[%emt 0:00:00]} Nb7 {[%emt 0:00:00]} 49. Bg4 {[%emt 0:00:00]} Na5 {[%emt 0:00:00]} 50. Bd1 {[%emt 0:00:00]} Kf7 {[%emt 0:00:00]} 51. Ng4 {[%emt 0:00:00]} Bd6 {[%emt 0:00:00]} 52. Nf2 {[%emt 0:00:00]} f5 {[%emt 0:00:00]} 53. Nh3 {[%emt 0:00:00]} Na8 {[%emt 0:00:00]} 54. Ng5+ {[%emt 0:00:00]} Kf6 {[%emt 0:00:00]} 55. Bc2 {[%emt 0:00:34]} Nc7 {[%emt 0:00:00]} 56. Nd1 {[%emt 0:01:20]} Ne8 {[%emt 0:00:00]} 57. Nf2 {[%emt 0:00:21]} Ng7 {[%emt 0:00:00]} 58. Kh4 {[%emt 0:01:03]} Ne6 {[%emt 0:00:26]} 59. Nxe6 {[%emt 0:00:23]} Kxe6 {[%emt 0:00:02]} 60. Bd1 {[%emt 0:00:50]} Bg2 {[%emt 0:01:07]} 61. Kg3 {[%emt 0:00:25]} Bc6 {[%emt 0:00:23]} 62. Nh3 {[%emt 0:00:12]} Bc7 {[%emt 0:00:46]} 63. Ng5+ {[%emt 0:00:14]} Kf6 {[%emt 0:00:10]} 64. Be1 {[%emt 0:00:35]} Bd6 {[%emt 0:00:34]} 65. Nh3 {[%emt 0:00:24]} Kg6 {[%emt 0:00:31]} 66. Kh2 {[%emt 0:00:46]} Be7 {[%emt 0:00:44]} 67. Ng1 {[%emt 0:01:03]} Bd6 {[%emt 0:00:32]} 68. Bg3 {[%emt 0:01:07]} Bc7 {[%emt 0:00:24]} 69. Nh3 {[%emt 0:00:18]} Bd6 {[%emt 0:01:25]} 70. Bh4 {[%emt 0:00:13]} Kf7 {[%emt 0:01:54]} 71. Kg3 {[%emt 0:00:19]} Ke8 {[%emt 0:01:14]} 72. Bf6 {[%emt 0:01:20]} Kf7 {[%emt 0:02:25]} 73. Bh8 {[%emt 0:01:18]} Kg8 {[%emt 0:01:37]} 74. Be5 {[%emt 0:00:10]} Be7 {[%emt 0:00:17]} 75. Ng5 {[%emt 0:00:23]} Bd7 {[%emt 0:00:49]} 76. Bc7 {[%emt 0:00:10]} Nc6 {[%emt 0:00:48]} 77. Bf3 {[%emt 0:00:17]} Nd8 {[%emt 0:00:16]} 78. Bd5+ {[%emt 0:00:12]} Kf8 {[%emt 0:00:51]} 79. Kh4 {[%emt 0:02:46]} Ba4 {[%emt 0:00:18]} 80. Bxd8 {[%emt 0:00:26]} Bxd8 {[%emt 0:00:11]} 81. Kh5 {[%emt 0:00:45]} Bxg5 {[%emt 0:00:58]} 0-1

[Event "Bamberg-Open 2019"]
[Site "Bamberg"]
[Date "2019.05.29"]
[Round "1.20"]
[White "Chennaoui, Yasin"]
[Black "Grimm, Pascal"]
[Result "1-0"]
[ECO "A10"]
[WhiteElo "2184"]
[BlackElo "1880"]
[Annotator "ChessBase"]
[PlyCount "51"]
[EventDate "2019.05.12"]
[EventType "swiss"]
[EventCountry "GER"]
[SourceTitle "playchess.com"]
[Source "ChessBase"]
[SourceQuality "1"]
[TimeControl "40/5400+30:900+30"]

1. c4 {[%emt 0:00:00]} g6 {[%emt 0:00:43]} 2. g3 {[%emt 0:00:00]} Bg7 {[%emt 0:00:02]} 3. Bg2 {[%emt 0:00:00]} d6 {[%emt 0:00:06]} 4. Nc3 {[%emt 0:00:00]} e5 {[%emt 0:00:30]} 5. d3 {[%emt 0:02:21]} f5 {[%emt 0:00:15]} 6. e3 {[%emt 0:01:44]} Nf6 {[%emt 0:00:20]} 7. Nge2 {[%emt 0:00:07]} O-O {[%emt 0:00:56]} 8. O-O {[%emt 0:00:45]} Nc6 {[%emt 0:00:57]} 9. a3 {[%emt 0:00:09]} Be6 {[%emt 0:02:29]} 10. Nd5 {[%emt 0:05:22]} Qd7 {[%emt 0:01:33]} 11. Nec3 {[%emt 0:02:54]} Nd8 {[%emt 0:01:03]} 12. d4 {[%emt 0:05:26]} Bxd5 {[%emt 0:21:25]} 13. Nxd5 {[%emt 0:11:03]} Nxd5 {[%emt 0:02:53]} 14. cxd5 {[%emt 0:03:11]} g5 {[%emt 0:15:39]} 15. dxe5 {[%emt 0:08:49]} dxe5 {[%emt 0:03:18]} 16. Qh5 {[%emt 0:07:03]} Bf6 {[%emt 0:18:02]} 17. e4 {[%emt 0:05:33]} f4 {[%emt 0:01:20]} 18. h4 {[%emt 0:02:00]} Qf7 {[%emt 0:01:24]} 19. Qe2 {[%emt 0:18:58]} Be7 {[%emt 0:03:37]} 20. Bh3 {[%emt 0:02:16]} f3 {[%emt 0:05:14]} 21. Qe3 {[%emt 0:01:19]} gxh4 {[%emt 0:03:15]} 22. Bf5 {[%emt 0:01:01]} Kh8 {[%emt 0:04:18]} 23. Qxf3 {[%emt 0:01:24]} hxg3 {[%emt 0:06:02]} 24. fxg3 {[%emt 0:00:18]} Qg7 {[%emt 0:00:37]} 25. Kg2 {[%emt 0:01:04]} Bg5 {[%emt 0:05:23]} 26. Rh1 {[%emt 0:00:44]} 1-0

[Event "Bamberg-Open 2019"]
[Site "Bamberg"]
[Date "2019.05.29"]
[Round "1.21"]
[White "Schreiter, Thomas"]
[Black "Syperek, Sebastian"]
[Result "1-0"]
[ECO "A40"]
[WhiteElo "1982"]
[BlackElo "2184"]
[Annotator "ChessBase"]
[PlyCount "77"]
[EventDate "2019.05.12"]
[EventType "swiss"]
[EventCountry "GER"]
[SourceTitle "playchess.com"]
[Source "ChessBase"]
[SourceQuality "1"]
[TimeControl "40/5400+30:900+30"]

1. d4 {[%emt 0:00:00]} g6 {[%emt 0:00:00]} 2. g3 {[%emt 0:00:07]} Bg7 {[%emt 0:00:07]} 3. Bg2 {[%emt 0:00:12]} f5 {[%emt 0:00:18]} 4. Nf3 {[%emt 0:01:03]} Nf6 {[%emt 0:00:13]} 5. O-O {[%emt 0:00:19]} O-O {[%emt 0:00:17]} 6. c4 {[%emt 0:01:01]} d6 {[%emt 0:00:39]} 7. b3 {[%emt 0:02:40]} c6 {[%emt 0:00:43]} 8. Bb2 {[%emt 0:00:12]} Na6 {[%emt 0:00:58]} 9. Nc3 {[%emt 0:03:07]} Qe8 {[%emt 0:00:22]} 10. Re1 {[%emt 0:06:00]} h6 {[%emt 0:03:16]} 11. a3 {[%emt 0:09:51]} e5 {[%emt 0:05:41]} 12. dxe5 {[%emt 0:06:29]} dxe5 {[%emt 0:00:19]} 13. e4 {[%emt 0:00:20]} f4 {[%emt 0:00:58]} 14. Qd6 {[%emt 0:02:22]} Nd7 {[%emt 0:09:25]} 15. b4 {[%emt 0:09:15]} Rf6 {[%emt 0:01:15]} 16. Qd3 {[%emt 0:01:41]} Nc7 {[%emt 0:03:08]} 17. Ne2 {[%emt 0:06:30]} g5 {[%emt 0:02:07]} 18. gxf4 {[%emt 0:04:49]} gxf4 {[%emt 0:01:57]} 19. Kh1 {[%emt 0:00:11]} Qh5 {[%emt 0:04:45]} 20. Rad1 {[%emt 0:07:02]} Rg6 {[%emt 0:02:16]} 21. Rg1 {[%emt 0:01:25]} Nf8 {[%emt 0:02:34]} 22. Nd2 {[%emt 0:03:30]} Bg4 {[%emt 0:05:00]} 23. Bf3 {[%emt 0:00:47]} Qh3 {[%emt 0:05:00]} 24. Qc3 {[%emt 0:06:33]} Qh4 {[%emt 0:09:27]} 25. Rxg4 {[%emt 0:01:19]} Rxg4 {[%emt 0:00:37]} 26. Bxg4 {[%emt 0:00:08]} Qxg4 {[%emt 0:00:20]} 27. Rg1 {[%emt 0:05:38]} Qh5 {[%emt 0:06:47]} 28. Nxf4 {[%emt 0:04:14]} Qf7 {[%emt 0:00:12]} 29. Qxe5 {[%emt 0:00:13]} Nce6 {[%emt 0:00:46]} 30. Nxe6 {[%emt 0:02:35]} Nxe6 {[%emt 0:00:09]} 31. f4 {[%emt 0:02:41]} Kh8 {[%emt 0:00:34]} 32. Qf5 {[%emt 0:01:22]} Qxf5 {[%emt 0:00:44]} 33. exf5 {[%emt 0:00:04]} Bxb2 {[%emt 0:00:31]} 34. fxe6 {[%emt 0:00:09]} Bxa3 {[%emt 0:00:28]} 35. f5 {[%emt 0:01:17]} Bxb4 {[%emt 0:00:14]} 36. Ne4 {[%emt 0:00:04]} Rf8 {[%emt 0:00:34]} 37. f6 {[%emt 0:00:18]} Re8 {[%emt 0:00:19]} 38. f7 {[%emt 0:02:19]} Rxe6 {[%emt 0:00:10]} 39. c5 {[%emt 0:00:01]} 1-0

[Event "Bamberg-Open 2019"]
[Site "Bamberg"]
[Date "2019.05.29"]
[Round "1.23"]
[White "Wolf, Pablo"]
[Black "Delitzsch, Juergen"]
[Result "0-1"]
[ECO "B26"]
[WhiteElo "1976"]
[BlackElo "2175"]
[Annotator "ChessBase"]
[PlyCount "64"]
[EventDate "2019.05.12"]
[EventType "swiss"]
[EventCountry "GER"]
[SourceTitle "playchess.com"]
[Source "ChessBase"]
[SourceQuality "1"]
[TimeControl "40/5400+30:900+30"]

1. e4 {[%emt 0:00:00]} c5 {[%emt 0:00:00]} 2. Nc3 {[%emt 0:00:00]} Nc6 {[%emt 0:00:01]} 3. g3 {[%emt 0:00:00]} g6 {[%emt 0:00:05]} 4. Bg2 {[%emt 0:00:00]} Bg7 {[%emt 0:00:03]} 5. d3 {[%emt 0:00:05]} d6 {[%emt 0:00:09]} 6. Be3 {[%emt 0:00:41]} Rb8 {[%emt 0:00:40]} 7. Qd2 {[%emt 0:00:48]} b5 {[%emt 0:00:42]} 8. f4 {[%emt 0:00:39]} Nd4 {[%emt 0:04:17]} 9. Nd1 {[%emt 0:03:43]} Qb6 {[%emt 0:11:30]} 10. c3 {[%emt 0:00:24]} Nc6 {[%emt 0:00:03]} 11. Nf3 {[%emt 0:00:22]} Nf6 {[%emt 0:00:44]} 12. h3 {[%emt 0:01:41]} b4 {[%emt 0:07:52]} 13. O-O {[%emt 0:03:50]} bxc3 {[%emt 0:01:03]} 14. bxc3 {[%emt 0:00:35]} O-O {[%emt 0:00:28]} 15. Nf2 {[%emt 0:03:08]} Qa5 {[%emt 0:05:03]} 16. Rab1 {[%emt 0:02:20]} Rxb1 {[%emt 0:03:49]} 17. Rxb1 {[%emt 0:00:20]} Nh5 {[%emt 0:00:06]} 18. g4 {[%emt 0:02:48]} Bxc3 {[%emt 0:00:14]} 19. Qc2 {[%emt 0:00:27]} Ng7 {[%emt 0:00:43]} 20. Rc1 {[%emt 0:00:30]} Bb4 {[%emt 0:03:29]} 21. d4 {[%emt 0:04:57]} cxd4 {[%emt 0:06:02]} 22. Bxd4 {[%emt 0:03:16]} Nxd4 {[%emt 0:02:40]} 23. Nxd4 {[%emt 0:00:47]} Bd7 {[%emt 0:06:41]} 24. Nb3 {[%emt 0:03:28]} Qb6 {[%emt 0:07:52]} 25. Qc7 {[%emt 0:02:44]} Rd8 {[%emt 0:01:15]} 26. Qc2 {[%emt 0:04:48]} Ne6 {[%emt 0:07:34]} 27. f5 {[%emt 0:05:53]} Nf4 {[%emt 0:02:51]} 28. Qd1 {[%emt 0:00:53]} Qe3 {[%emt 0:05:37]} 29. Rc2 {[%emt 0:04:18]} Rc8 {[%emt 0:08:22]} 30. Rxc8+ {[%emt 0:08:54]} Bxc8 {[%emt 0:00:03]} 31. Qf3 {[%emt 0:02:31]} Qe1+ {[%emt 0:00:10]} 32. Bf1 {[%emt 0:00:07]} Ba6 {[%emt 0:02:13]} 0-1

[Event "Bamberg-Open 2019"]
[Site "Bamberg"]
[Date "2019.05.30"]
[Round "2.3"]
[White "Krauseneck, Peter"]
[Black "Stets, Dmitry"]
[Result "1/2-1/2"]
[ECO "A01"]
[WhiteElo "2136"]
[BlackElo "2391"]
[Annotator "ChessBase"]
[PlyCount "61"]
[EventDate "2019.05.12"]
[EventType "swiss"]
[EventCountry "GER"]
[SourceTitle "playchess.com"]
[Source "ChessBase"]
[SourceQuality "1"]
[TimeControl "40/5400+30:900+30"]

1. b3 {[%emt 0:01:45]} e5 {[%emt 0:00:00]} 2. Bb2 {[%emt 0:00:13]} d6 {[%emt 0:00:09]} 3. e3 {[%emt 0:00:37]} Nf6 {[%emt 0:00:35]} 4. d4 {[%emt 0:01:55]} Nbd7 {[%emt 0:00:47]} 5. Nf3 {[%emt 0:06:04]} e4 {[%emt 0:03:26]} 6. Nfd2 {[%emt 0:00:20]} d5 {[%emt 0:01:00]} 7. c4 {[%emt 0:00:09]} Bb4 {[%emt 0:00:42]} 8. a3 {[%emt 0:00:12]} Bxd2+ {[%emt 0:00:09]} 9. Qxd2 {[%emt 0:00:42]} O-O {[%emt 0:02:01]} 10. Nc3 {[%emt 0:00:06]} c6 {[%emt 0:10:52]} 11. Be2 {[%emt 0:01:41]} Nb6 {[%emt 0:01:47]} 12. c5 {[%emt 0:24:00]} Nbd7 {[%emt 0:00:13]} 13. f4 {[%emt 0:01:29]} b6 {[%emt 0:07:33]} 14. Na4 {[%emt 0:01:21]} a5 {[%emt 0:07:26]} 15. Bc3 {[%emt 0:04:48]} b5 {[%emt 0:11:25]} 16. Nb2 {[%emt 0:01:48]} Ne8 {[%emt 0:00:58]} 17. Nd1 {[%emt 0:00:42]} f5 {[%emt 0:00:49]} 18. Nf2 {[%emt 0:00:37]} Ndf6 {[%emt 0:00:52]} 19. b4 {[%emt 0:02:27]} axb4 {[%emt 0:03:39]} 20. Bxb4 {[%emt 0:01:34]} Rf7 {[%emt 0:02:02]} 21. h3 {[%emt 0:01:55]} h5 {[%emt 0:04:40]} 22. g3 {[%emt 0:05:00]} Rfa7 {[%emt 0:02:27]} 23. O-O {[%emt 0:03:33]} Nc7 {[%emt 0:02:00]} 24. Kh2 {[%emt 0:04:01]} Qe7 {[%emt 0:02:43]} 25. Rg1 {[%emt 0:01:29]} Bd7 {[%emt 0:01:27]} 26. Kg2 {[%emt 0:04:58]} Qf7 {[%emt 0:03:19]} 27. h4 {[%emt 0:00:21]} Ng4 {[%emt 0:00:37]} 28. Nh3 {[%emt 0:00:14]} Ne6 {[%emt 0:00:36]} 29. Bxg4 {[%emt 0:00:51]} fxg4 {[%emt 0:01:03]} 30. Ng5 {[%emt 0:00:03]} Nxg5 {[%emt 0:00:36]} 31. hxg5 {[%emt 0:00:08]} 1/2-1/2